Workbook

Sheet Home
I8: Other Resources | M8: Tutorials
I9: Blog | M9: Excel Functions | P9: https://www.myonlinetraininghub.com/excel-functions
I10: Free Training | M10: Charting Blog Posts | P10: http://www.myonlinetraininghub.com/category/excel-charts
I11: Forum | M11: Excel Dashboard Blog Posts | P11: http://www.myonlinetraininghub.com/category/excel-dashboard
B13: Click this blue button to run the macro | I13: Our Courses | M13: Webinars
I14: Excel Dashboards | M14: Excel Dashboards & Power BI | P14: http://www.myonlinetraininghub.com/excel-webinars
I15: Power Query
I16: Power Pivot
I17: Pivot Tables
I18: Excel Expert
I19: Excel for Decision Making
I20: Excel for Finance
I21: Excel for Customer Service Professionals
I22: Excel Analysis ToolPak
A25: Converging Stacked Bar Chart
N28: Question | O28: Strongly Agree | P28: Agree | Q28: Neutral | R28: Disagree | S28: Strongly Disagree
N29: Q17 | O29: -0.25 | P29: -0.51 | Q29: -0.17 | R29: 0.01 | S29: 0.02
N30: Q16 | O30: -0.13 | P30: -0.58 | Q30: -0.16 | R30: 0.04 | S30: 0.04
N31: Q15 | O31: -0.22 | P31: -0.52 | Q31: -0.16 | R31: 0.02 | S31: 0.03
N32: Q14 | O32: -0.22 | P32: -0.44 | Q32: -0.2 | R32: 0.04 | S32: 0.01
N33: Q13 | O33: -0.24 | P33: -0.49 | Q33: -0.18 | R33: 0.02 | S33: 0.03
N34: Q12 | O34: -0.22 | P34: -0.41 | Q34: -0.22 | R34: 0.04 | S34: 0.03
N35: Q11 | O35: -0.07 | P35: -0.2 | Q35: -0.51 | R35: 0.09 | S35: 0.07
N36: Q10 | O36: -0.19 | P36: -0.38 | Q36: -0.22 | R36: 0.08 | S36: 0.06
N37: Q9 | O37: -0.08 | P37: -0.43 | Q37: -0.31 | R37: 0.04 | S37: 0.03
N38: Q8 | O38: -0.07 | P38: -0.53 | Q38: -0.24 | R38: 0.05 | S38: 0.04
N39: Q7 | O39: -0.06 | P39: -0.59 | Q39: -0.17 | R39: 0.08 | S39: 0.03
N40: Q6 | O40: -0.12 | P40: -0.57 | Q40: -0.19 | R40: 0.02 | S40: 0.02
N41: Q5 | O41: -0.07 | P41: -0.43 | Q41: -0.33 | R41: 0.02 | S41: 0.02
N42: Q4 | O42: -0.09 | P42: -0.54 | Q42: -0.2 | R42: 0.02 | S42: 0.03
N43: Q3 | O43: -0.08 | P43: -0.41 | Q43: -0.31 | R43: 0.03 | S43: 0.04
N44: Q2 | O44: -0.04 | P44: -0.44 | Q44: -0.36 | R44: 0.03 | S44: 0.03
N45: Q1 | O45: -0.15 | P45: -0.52 | Q45: -0.14 | R45: 0.04 | S45: 0.05
A55: Waterfall Chart - Excel 2007+
A58: Chart Data | B58: P&L Values | C58: Totals | D58: Before | E58: After
A59: Sales | B59: 1200000 | C59: =B59 -> 1200000
A60: Consulting | B60: 60000 | D60: =SUM($B$5:B59) -> 1200000 | E60: =SUM($B$5:B60) -> 1260000
A61: Total Sales | B61: =SUM(B59:B60) -> 1260000 | C61: =B61 -> 1260000
A62: Materials | B62: =-B59*0.2 -> -240000 | D62: =SUM($B$7:B61) -> 2520000 | E62: =SUM($B$7:B62) -> 2280000
A63: Direct Labour | B63: -125000 | D63: =SUM($B$7:B62) -> 2280000 | E63: =SUM($B$7:B63) -> 2155000
A64: Freight | B64: -13500 | D64: =SUM($B$7:B63) -> 2155000 | E64: =SUM($B$7:B64) -> 2141500
A65: Gross Profit | B65: =SUM(B61:B64) -> 881500 | C65: =+B65 -> 881500
A66: Legal & Accounting | B66: -25000 | D66: =SUM($B$11:B65) -> 3023000 | E66: =SUM($B$11:B66) -> 2998000
A67: Wages | B67: -240000 | D67: =SUM($B$11:B66) -> 2998000 | E67: =SUM($B$11:B67) -> 2758000
A68: Interest | B68: -15000 | D68: =SUM($B$11:B67) -> 2758000 | E68: =SUM($B$11:B68) -> 2743000
A69: Repairs | B69: -31000 | D69: =SUM($B$11:B68) -> 2743000 | E69: =SUM($B$11:B69) -> 2712000
A70: Telephone | B70: -16000 | D70: =SUM($B$11:B69) -> 2712000 | E70: =SUM($B$11:B70) -> 2696000
A71: Utilities | B71: -18000 | D71: =SUM($B$11:B70) -> 2696000 | E71: =SUM($B$11:B71) -> 2678000
A72: Vehicles | B72: -42000 | D72: =SUM($B$11:B71) -> 2678000 | E72: =SUM($B$11:B72) -> 2636000
A73: Net Profit/(Loss) | B73: =SUM(B65:B72) -> 494500 | C73: =B73 -> 494500
A82: Excel Chart Label Min/Max
A84: Line Charts
A86: Year | B86: Month | C86: Sales | D86: Max | E86: Min
A87: 2017 | B87: J | C87: 72 | D87: =IF(Table14[[#This Row],[Sales]]=MAX(Table14[Sales]),Table14[[#This Row],[Sales]],NA()) ->  | E87: =IF(Table14[[#This Row],[Sales]]=MIN(Table14[Sales]),Table14[[#This Row],[Sales]],NA()) -> 
B88: F | C88: 61 | D88: =IF(Table14[[#This Row],[Sales]]=MAX(Table14[Sales]),Table14[[#This Row],[Sales]],NA()) ->  | E88: =IF(Table14[[#This Row],[Sales]]=MIN(Table14[Sales]),Table14[[#This Row],[Sales]],NA()) -> 
B89: M | C89: 92 | D89: =IF(Table14[[#This Row],[Sales]]=MAX(Table14[Sales]),Table14[[#This Row],[Sales]],NA()) ->  | E89: =IF(Table14[[#This Row],[Sales]]=MIN(Table14[Sales]),Table14[[#This Row],[Sales]],NA()) -> 
B90: A | C90: 88 | D90: =IF(Table14[[#This Row],[Sales]]=MAX(Table14[Sales]),Table14[[#This Row],[Sales]],NA()) ->  | E90: =IF(Table14[[#This Row],[Sales]]=MIN(Table14[Sales]),Table14[[#This Row],[Sales]],NA()) -> 
B91: M | C91: 80 | D91: =IF(Table14[[#This Row],[Sales]]=MAX(Table14[Sales]),Table14[[#This Row],[Sales]],NA()) ->  | E91: =IF(Table14[[#This Row],[Sales]]=MIN(Table14[Sales]),Table14[[#This Row],[Sales]],NA()) -> 
B92: J | C92: 97 | D92: =IF(Table14[[#This Row],[Sales]]=MAX(Table14[Sales]),Table14[[#This Row],[Sales]],NA()) -> 97 | E92: =IF(Table14[[#This Row],[Sales]]=MIN(Table14[Sales]),Table14[[#This Row],[Sales]],NA()) -> 
B93: J | C93: 89 | D93: =IF(Table14[[#This Row],[Sales]]=MAX(Table14[Sales]),Table14[[#This Row],[Sales]],NA()) ->  | E93: =IF(Table14[[#This Row],[Sales]]=MIN(Table14[Sales]),Table14[[#This Row],[Sales]],NA()) -> 
B94: A | C94: 90 | D94: =IF(Table14[[#This Row],[Sales]]=MAX(Table14[Sales]),Table14[[#This Row],[Sales]],NA()) ->  | E94: =IF(Table14[[#This Row],[Sales]]=MIN(Table14[Sales]),Table14[[#This Row],[Sales]],NA()) -> 
B95: S | C95: 95 | D95: =IF(Table14[[#This Row],[Sales]]=MAX(Table14[Sales]),Table14[[#This Row],[Sales]],NA()) ->  | E95: =IF(Table14[[#This Row],[Sales]]=MIN(Table14[Sales]),Table14[[#This Row],[Sales]],NA()) -> 
B96: O | C96: 87 | D96: =IF(Table14[[#This Row],[Sales]]=MAX(Table14[Sales]),Table14[[#This Row],[Sales]],NA()) ->  | E96: =IF(Table14[[#This Row],[Sales]]=MIN(Table14[Sales]),Table14[[#This Row],[Sales]],NA()) -> 
B97: N | C97: 65 | D97: =IF(Table14[[#This Row],[Sales]]=MAX(Table14[Sales]),Table14[[#This Row],[Sales]],NA()) ->  | E97: =IF(Table14[[#This Row],[Sales]]=MIN(Table14[Sales]),Table14[[#This Row],[Sales]],NA()) -> 
B98: D | C98: 56 | D98: =IF(Table14[[#This Row],[Sales]]=MAX(Table14[Sales]),Table14[[#This Row],[Sales]],NA()) ->  | E98: =IF(Table14[[#This Row],[Sales]]=MIN(Table14[Sales]),Table14[[#This Row],[Sales]],NA()) -> 
A99: 2018 | B99: J | C99: 71 | D99: =IF(Table14[[#This Row],[Sales]]=MAX(Table14[Sales]),Table14[[#This Row],[Sales]],NA()) ->  | E99: =IF(Table14[[#This Row],[Sales]]=MIN(Table14[Sales]),Table14[[#This Row],[Sales]],NA()) -> 
B100: F | C100: 78 | D100: =IF(Table14[[#This Row],[Sales]]=MAX(Table14[Sales]),Table14[[#This Row],[Sales]],NA()) ->  | E100: =IF(Table14[[#This Row],[Sales]]=MIN(Table14[Sales]),Table14[[#This Row],[Sales]],NA()) -> 
B101: M | C101: 52 | D101: =IF(Table14[[#This Row],[Sales]]=MAX(Table14[Sales]),Table14[[#This Row],[Sales]],NA()) ->  | E101: =IF(Table14[[#This Row],[Sales]]=MIN(Table14[Sales]),Table14[[#This Row],[Sales]],NA()) -> 
B102: A | C102: 64 | D102: =IF(Table14[[#This Row],[Sales]]=MAX(Table14[Sales]),Table14[[#This Row],[Sales]],NA()) ->  | E102: =IF(Table14[[#This Row],[Sales]]=MIN(Table14[Sales]),Table14[[#This Row],[Sales]],NA()) -> 
B103: M | C103: 58 | D103: =IF(Table14[[#This Row],[Sales]]=MAX(Table14[Sales]),Table14[[#This Row],[Sales]],NA()) ->  | E103: =IF(Table14[[#This Row],[Sales]]=MIN(Table14[Sales]),Table14[[#This Row],[Sales]],NA()) -> 
B104: J | C104: 74 | D104: =IF(Table14[[#This Row],[Sales]]=MAX(Table14[Sales]),Table14[[#This Row],[Sales]],NA()) ->  | E104: =IF(Table14[[#This Row],[Sales]]=MIN(Table14[Sales]),Table14[[#This Row],[Sales]],NA()) -> 
B105: J | C105: 82 | D105: =IF(Table14[[#This Row],[Sales]]=MAX(Table14[Sales]),Table14[[#This Row],[Sales]],NA()) ->  | E105: =IF(Table14[[#This Row],[Sales]]=MIN(Table14[Sales]),Table14[[#This Row],[Sales]],NA()) -> 
B106: A | C106: 50 | D106: =IF(Table14[[#This Row],[Sales]]=MAX(Table14[Sales]),Table14[[#This Row],[Sales]],NA()) ->  | E106: =IF(Table14[[#This Row],[Sales]]=MIN(Table14[Sales]),Table14[[#This Row],[Sales]],NA()) -> 50
B107: S | C107: 73 | D107: =IF(Table14[[#This Row],[Sales]]=MAX(Table14[Sales]),Table14[[#This Row],[Sales]],NA()) ->  | E107: =IF(Table14[[#This Row],[Sales]]=MIN(Table14[Sales]),Table14[[#This Row],[Sales]],NA()) -> 
B108: O | C108: 87 | D108: =IF(Table14[[#This Row],[Sales]]=MAX(Table14[Sales]),Table14[[#This Row],[Sales]],NA()) ->  | E108: =IF(Table14[[#This Row],[Sales]]=MIN(Table14[Sales]),Table14[[#This Row],[Sales]],NA()) -> 
B109: N | C109: 56 | D109: =IF(Table14[[#This Row],[Sales]]=MAX(Table14[Sales]),Table14[[#This Row],[Sales]],NA()) ->  | E109: =IF(Table14[[#This Row],[Sales]]=MIN(Table14[Sales]),Table14[[#This Row],[Sales]],NA()) -> 
B110: D | C110: 52 | D110: =IF(Table14[[#This Row],[Sales]]=MAX(Table14[Sales]),Table14[[#This Row],[Sales]],NA()) ->  | E110: =IF(Table14[[#This Row],[Sales]]=MIN(Table14[Sales]),Table14[[#This Row],[Sales]],NA()) -> 
A124: Column Charts
A126: Year | B126: Month | C126: Sales | D126: Max | E126: Min
A127: 2017 | B127: J | C127: 72 | D127: =IF(Table135[[#This Row],[Sales]]=MAX(Table135[Sales]),Table135[[#This Row],[Sales]],0) -> 0 | E127: =IF(Table135[[#This Row],[Sales]]=MIN(Table135[Sales]),Table135[[#This Row],[Sales]],0) -> 0
B128: F | C128: 61 | D128: =IF(Table135[[#This Row],[Sales]]=MAX(Table135[Sales]),Table135[[#This Row],[Sales]],0) -> 0 | E128: =IF(Table135[[#This Row],[Sales]]=MIN(Table135[Sales]),Table135[[#This Row],[Sales]],0) -> 0
B129: M | C129: 92 | D129: =IF(Table135[[#This Row],[Sales]]=MAX(Table135[Sales]),Table135[[#This Row],[Sales]],0) -> 0 | E129: =IF(Table135[[#This Row],[Sales]]=MIN(Table135[Sales]),Table135[[#This Row],[Sales]],0) -> 0
B130: A | C130: 88 | D130: =IF(Table135[[#This Row],[Sales]]=MAX(Table135[Sales]),Table135[[#This Row],[Sales]],0) -> 0 | E130: =IF(Table135[[#This Row],[Sales]]=MIN(Table135[Sales]),Table135[[#This Row],[Sales]],0) -> 0
B131: M | C131: 80 | D131: =IF(Table135[[#This Row],[Sales]]=MAX(Table135[Sales]),Table135[[#This Row],[Sales]],0) -> 0 | E131: =IF(Table135[[#This Row],[Sales]]=MIN(Table135[Sales]),Table135[[#This Row],[Sales]],0) -> 0
B132: J | C132: 97 | D132: =IF(Table135[[#This Row],[Sales]]=MAX(Table135[Sales]),Table135[[#This Row],[Sales]],0) -> 97 | E132: =IF(Table135[[#This Row],[Sales]]=MIN(Table135[Sales]),Table135[[#This Row],[Sales]],0) -> 0
B133: J | C133: 89 | D133: =IF(Table135[[#This Row],[Sales]]=MAX(Table135[Sales]),Table135[[#This Row],[Sales]],0) -> 0 | E133: =IF(Table135[[#This Row],[Sales]]=MIN(Table135[Sales]),Table135[[#This Row],[Sales]],0) -> 0
B134: A | C134: 90 | D134: =IF(Table135[[#This Row],[Sales]]=MAX(Table135[Sales]),Table135[[#This Row],[Sales]],0) -> 0 | E134: =IF(Table135[[#This Row],[Sales]]=MIN(Table135[Sales]),Table135[[#This Row],[Sales]],0) -> 0
B135: S | C135: 95 | D135: =IF(Table135[[#This Row],[Sales]]=MAX(Table135[Sales]),Table135[[#This Row],[Sales]],0) -> 0 | E135: =IF(Table135[[#This Row],[Sales]]=MIN(Table135[Sales]),Table135[[#This Row],[Sales]],0) -> 0
B136: O | C136: 87 | D136: =IF(Table135[[#This Row],[Sales]]=MAX(Table135[Sales]),Table135[[#This Row],[Sales]],0) -> 0 | E136: =IF(Table135[[#This Row],[Sales]]=MIN(Table135[Sales]),Table135[[#This Row],[Sales]],0) -> 0
B137: N | C137: 65 | D137: =IF(Table135[[#This Row],[Sales]]=MAX(Table135[Sales]),Table135[[#This Row],[Sales]],0) -> 0 | E137: =IF(Table135[[#This Row],[Sales]]=MIN(Table135[Sales]),Table135[[#This Row],[Sales]],0) -> 0
B138: D | C138: 56 | D138: =IF(Table135[[#This Row],[Sales]]=MAX(Table135[Sales]),Table135[[#This Row],[Sales]],0) -> 0 | E138: =IF(Table135[[#This Row],[Sales]]=MIN(Table135[Sales]),Table135[[#This Row],[Sales]],0) -> 0
A139: 2018 | B139: J | C139: 71 | D139: =IF(Table135[[#This Row],[Sales]]=MAX(Table135[Sales]),Table135[[#This Row],[Sales]],0) -> 0 | E139: =IF(Table135[[#This Row],[Sales]]=MIN(Table135[Sales]),Table135[[#This Row],[Sales]],0) -> 0
B140: F | C140: 78 | D140: =IF(Table135[[#This Row],[Sales]]=MAX(Table135[Sales]),Table135[[#This Row],[Sales]],0) -> 0 | E140: =IF(Table135[[#This Row],[Sales]]=MIN(Table135[Sales]),Table135[[#This Row],[Sales]],0) -> 0
B141: M | C141: 52 | D141: =IF(Table135[[#This Row],[Sales]]=MAX(Table135[Sales]),Table135[[#This Row],[Sales]],0) -> 0 | E141: =IF(Table135[[#This Row],[Sales]]=MIN(Table135[Sales]),Table135[[#This Row],[Sales]],0) -> 0
B142: A | C142: 64 | D142: =IF(Table135[[#This Row],[Sales]]=MAX(Table135[Sales]),Table135[[#This Row],[Sales]],0) -> 0 | E142: =IF(Table135[[#This Row],[Sales]]=MIN(Table135[Sales]),Table135[[#This Row],[Sales]],0) -> 0
B143: M | C143: 58 | D143: =IF(Table135[[#This Row],[Sales]]=MAX(Table135[Sales]),Table135[[#This Row],[Sales]],0) -> 0 | E143: =IF(Table135[[#This Row],[Sales]]=MIN(Table135[Sales]),Table135[[#This Row],[Sales]],0) -> 0
B144: J | C144: 74 | D144: =IF(Table135[[#This Row],[Sales]]=MAX(Table135[Sales]),Table135[[#This Row],[Sales]],0) -> 0 | E144: =IF(Table135[[#This Row],[Sales]]=MIN(Table135[Sales]),Table135[[#This Row],[Sales]],0) -> 0
B145: J | C145: 82 | D145: =IF(Table135[[#This Row],[Sales]]=MAX(Table135[Sales]),Table135[[#This Row],[Sales]],0) -> 0 | E145: =IF(Table135[[#This Row],[Sales]]=MIN(Table135[Sales]),Table135[[#This Row],[Sales]],0) -> 0
B146: A | C146: 50 | D146: =IF(Table135[[#This Row],[Sales]]=MAX(Table135[Sales]),Table135[[#This Row],[Sales]],0) -> 0 | E146: =IF(Table135[[#This Row],[Sales]]=MIN(Table135[Sales]),Table135[[#This Row],[Sales]],0) -> 50
B147: S | C147: 73 | D147: =IF(Table135[[#This Row],[Sales]]=MAX(Table135[Sales]),Table135[[#This Row],[Sales]],0) -> 0 | E147: =IF(Table135[[#This Row],[Sales]]=MIN(Table135[Sales]),Table135[[#This Row],[Sales]],0) -> 0
B148: O | C148: 87 | D148: =IF(Table135[[#This Row],[Sales]]=MAX(Table135[Sales]),Table135[[#This Row],[Sales]],0) -> 0 | E148: =IF(Table135[[#This Row],[Sales]]=MIN(Table135[Sales]),Table135[[#This Row],[Sales]],0) -> 0
B149: N | C149: 56 | D149: =IF(Table135[[#This Row],[Sales]]=MAX(Table135[Sales]),Table135[[#This Row],[Sales]],0) -> 0 | E149: =IF(Table135[[#This Row],[Sales]]=MIN(Table135[Sales]),Table135[[#This Row],[Sales]],0) -> 0
B150: D | C150: 52 | D150: =IF(Table135[[#This Row],[Sales]]=MAX(Table135[Sales]),Table135[[#This Row],[Sales]],0) -> 0 | E150: =IF(Table135[[#This Row],[Sales]]=MIN(Table135[Sales]),Table135[[#This Row],[Sales]],0) -> 0

Sheet Min Max
A1: Excel Chart Label Min/Max
A3: Line Charts
A5: Year | B5: Month | C5: Sales | D5: Max | E5: Min
A6: 2017 | B6: J | C6: 72 | D6: =IF(Table1[[#This Row],[Sales]]=MAX(Table1[Sales]),Table1[[#This Row],[Sales]],NA()) ->  | E6: =IF(Table1[[#This Row],[Sales]]=MIN(Table1[Sales]),Table1[[#This Row],[Sales]],NA()) -> 
B7: F | C7: 61 | D7: =IF(Table1[[#This Row],[Sales]]=MAX(Table1[Sales]),Table1[[#This Row],[Sales]],NA()) ->  | E7: =IF(Table1[[#This Row],[Sales]]=MIN(Table1[Sales]),Table1[[#This Row],[Sales]],NA()) -> 
B8: M | C8: 92 | D8: =IF(Table1[[#This Row],[Sales]]=MAX(Table1[Sales]),Table1[[#This Row],[Sales]],NA()) ->  | E8: =IF(Table1[[#This Row],[Sales]]=MIN(Table1[Sales]),Table1[[#This Row],[Sales]],NA()) -> 
B9: A | C9: 88 | D9: =IF(Table1[[#This Row],[Sales]]=MAX(Table1[Sales]),Table1[[#This Row],[Sales]],NA()) ->  | E9: =IF(Table1[[#This Row],[Sales]]=MIN(Table1[Sales]),Table1[[#This Row],[Sales]],NA()) -> 
B10: M | C10: 80 | D10: =IF(Table1[[#This Row],[Sales]]=MAX(Table1[Sales]),Table1[[#This Row],[Sales]],NA()) ->  | E10: =IF(Table1[[#This Row],[Sales]]=MIN(Table1[Sales]),Table1[[#This Row],[Sales]],NA()) -> 
B11: J | C11: 97 | D11: =IF(Table1[[#This Row],[Sales]]=MAX(Table1[Sales]),Table1[[#This Row],[Sales]],NA()) -> 97 | E11: =IF(Table1[[#This Row],[Sales]]=MIN(Table1[Sales]),Table1[[#This Row],[Sales]],NA()) -> 
B12: J | C12: 89 | D12: =IF(Table1[[#This Row],[Sales]]=MAX(Table1[Sales]),Table1[[#This Row],[Sales]],NA()) ->  | E12: =IF(Table1[[#This Row],[Sales]]=MIN(Table1[Sales]),Table1[[#This Row],[Sales]],NA()) -> 
B13: A | C13: 90 | D13: =IF(Table1[[#This Row],[Sales]]=MAX(Table1[Sales]),Table1[[#This Row],[Sales]],NA()) ->  | E13: =IF(Table1[[#This Row],[Sales]]=MIN(Table1[Sales]),Table1[[#This Row],[Sales]],NA()) -> 
B14: S | C14: 95 | D14: =IF(Table1[[#This Row],[Sales]]=MAX(Table1[Sales]),Table1[[#This Row],[Sales]],NA()) ->  | E14: =IF(Table1[[#This Row],[Sales]]=MIN(Table1[Sales]),Table1[[#This Row],[Sales]],NA()) -> 
B15: O | C15: 87 | D15: =IF(Table1[[#This Row],[Sales]]=MAX(Table1[Sales]),Table1[[#This Row],[Sales]],NA()) ->  | E15: =IF(Table1[[#This Row],[Sales]]=MIN(Table1[Sales]),Table1[[#This Row],[Sales]],NA()) -> 
B16: N | C16: 65 | D16: =IF(Table1[[#This Row],[Sales]]=MAX(Table1[Sales]),Table1[[#This Row],[Sales]],NA()) ->  | E16: =IF(Table1[[#This Row],[Sales]]=MIN(Table1[Sales]),Table1[[#This Row],[Sales]],NA()) -> 
B17: D | C17: 56 | D17: =IF(Table1[[#This Row],[Sales]]=MAX(Table1[Sales]),Table1[[#This Row],[Sales]],NA()) ->  | E17: =IF(Table1[[#This Row],[Sales]]=MIN(Table1[Sales]),Table1[[#This Row],[Sales]],NA()) -> 
A18: 2018 | B18: J | C18: 71 | D18: =IF(Table1[[#This Row],[Sales]]=MAX(Table1[Sales]),Table1[[#This Row],[Sales]],NA()) ->  | E18: =IF(Table1[[#This Row],[Sales]]=MIN(Table1[Sales]),Table1[[#This Row],[Sales]],NA()) -> 
B19: F | C19: 78 | D19: =IF(Table1[[#This Row],[Sales]]=MAX(Table1[Sales]),Table1[[#This Row],[Sales]],NA()) ->  | E19: =IF(Table1[[#This Row],[Sales]]=MIN(Table1[Sales]),Table1[[#This Row],[Sales]],NA()) -> 
B20: M | C20: 52 | D20: =IF(Table1[[#This Row],[Sales]]=MAX(Table1[Sales]),Table1[[#This Row],[Sales]],NA()) ->  | E20: =IF(Table1[[#This Row],[Sales]]=MIN(Table1[Sales]),Table1[[#This Row],[Sales]],NA()) -> 
B21: A | C21: 64 | D21: =IF(Table1[[#This Row],[Sales]]=MAX(Table1[Sales]),Table1[[#This Row],[Sales]],NA()) ->  | E21: =IF(Table1[[#This Row],[Sales]]=MIN(Table1[Sales]),Table1[[#This Row],[Sales]],NA()) -> 
B22: M | C22: 58 | D22: =IF(Table1[[#This Row],[Sales]]=MAX(Table1[Sales]),Table1[[#This Row],[Sales]],NA()) ->  | E22: =IF(Table1[[#This Row],[Sales]]=MIN(Table1[Sales]),Table1[[#This Row],[Sales]],NA()) -> 
B23: J | C23: 74 | D23: =IF(Table1[[#This Row],[Sales]]=MAX(Table1[Sales]),Table1[[#This Row],[Sales]],NA()) ->  | E23: =IF(Table1[[#This Row],[Sales]]=MIN(Table1[Sales]),Table1[[#This Row],[Sales]],NA()) -> 
B24: J | C24: 82 | D24: =IF(Table1[[#This Row],[Sales]]=MAX(Table1[Sales]),Table1[[#This Row],[Sales]],NA()) ->  | E24: =IF(Table1[[#This Row],[Sales]]=MIN(Table1[Sales]),Table1[[#This Row],[Sales]],NA()) -> 
B25: A | C25: 50 | D25: =IF(Table1[[#This Row],[Sales]]=MAX(Table1[Sales]),Table1[[#This Row],[Sales]],NA()) ->  | E25: =IF(Table1[[#This Row],[Sales]]=MIN(Table1[Sales]),Table1[[#This Row],[Sales]],NA()) -> 50
B26: S | C26: 73 | D26: =IF(Table1[[#This Row],[Sales]]=MAX(Table1[Sales]),Table1[[#This Row],[Sales]],NA()) ->  | E26: =IF(Table1[[#This Row],[Sales]]=MIN(Table1[Sales]),Table1[[#This Row],[Sales]],NA()) -> 
B27: O | C27: 87 | D27: =IF(Table1[[#This Row],[Sales]]=MAX(Table1[Sales]),Table1[[#This Row],[Sales]],NA()) ->  | E27: =IF(Table1[[#This Row],[Sales]]=MIN(Table1[Sales]),Table1[[#This Row],[Sales]],NA()) -> 
B28: N | C28: 56 | D28: =IF(Table1[[#This Row],[Sales]]=MAX(Table1[Sales]),Table1[[#This Row],[Sales]],NA()) ->  | E28: =IF(Table1[[#This Row],[Sales]]=MIN(Table1[Sales]),Table1[[#This Row],[Sales]],NA()) -> 
B29: D | C29: 52 | D29: =IF(Table1[[#This Row],[Sales]]=MAX(Table1[Sales]),Table1[[#This Row],[Sales]],NA()) ->  | E29: =IF(Table1[[#This Row],[Sales]]=MIN(Table1[Sales]),Table1[[#This Row],[Sales]],NA()) -> 
A38: Column Charts
A40: Year | B40: Month | C40: Sales | D40: Max | E40: Min
A41: 2017 | B41: J | C41: 72 | D41: =IF(Table13[[#This Row],[Sales]]=MAX(Table13[Sales]),Table13[[#This Row],[Sales]],0) -> 0 | E41: =IF(Table13[[#This Row],[Sales]]=MIN(Table13[Sales]),Table13[[#This Row],[Sales]],0) -> 0
B42: F | C42: 61 | D42: =IF(Table13[[#This Row],[Sales]]=MAX(Table13[Sales]),Table13[[#This Row],[Sales]],0) -> 0 | E42: =IF(Table13[[#This Row],[Sales]]=MIN(Table13[Sales]),Table13[[#This Row],[Sales]],0) -> 0
B43: M | C43: 92 | D43: =IF(Table13[[#This Row],[Sales]]=MAX(Table13[Sales]),Table13[[#This Row],[Sales]],0) -> 0 | E43: =IF(Table13[[#This Row],[Sales]]=MIN(Table13[Sales]),Table13[[#This Row],[Sales]],0) -> 0
B44: A | C44: 88 | D44: =IF(Table13[[#This Row],[Sales]]=MAX(Table13[Sales]),Table13[[#This Row],[Sales]],0) -> 0 | E44: =IF(Table13[[#This Row],[Sales]]=MIN(Table13[Sales]),Table13[[#This Row],[Sales]],0) -> 0
B45: M | C45: 80 | D45: =IF(Table13[[#This Row],[Sales]]=MAX(Table13[Sales]),Table13[[#This Row],[Sales]],0) -> 0 | E45: =IF(Table13[[#This Row],[Sales]]=MIN(Table13[Sales]),Table13[[#This Row],[Sales]],0) -> 0
B46: J | C46: 97 | D46: =IF(Table13[[#This Row],[Sales]]=MAX(Table13[Sales]),Table13[[#This Row],[Sales]],0) -> 97 | E46: =IF(Table13[[#This Row],[Sales]]=MIN(Table13[Sales]),Table13[[#This Row],[Sales]],0) -> 0
B47: J | C47: 89 | D47: =IF(Table13[[#This Row],[Sales]]=MAX(Table13[Sales]),Table13[[#This Row],[Sales]],0) -> 0 | E47: =IF(Table13[[#This Row],[Sales]]=MIN(Table13[Sales]),Table13[[#This Row],[Sales]],0) -> 0
B48: A | C48: 90 | D48: =IF(Table13[[#This Row],[Sales]]=MAX(Table13[Sales]),Table13[[#This Row],[Sales]],0) -> 0 | E48: =IF(Table13[[#This Row],[Sales]]=MIN(Table13[Sales]),Table13[[#This Row],[Sales]],0) -> 0
B49: S | C49: 95 | D49: =IF(Table13[[#This Row],[Sales]]=MAX(Table13[Sales]),Table13[[#This Row],[Sales]],0) -> 0 | E49: =IF(Table13[[#This Row],[Sales]]=MIN(Table13[Sales]),Table13[[#This Row],[Sales]],0) -> 0
B50: O | C50: 87 | D50: =IF(Table13[[#This Row],[Sales]]=MAX(Table13[Sales]),Table13[[#This Row],[Sales]],0) -> 0 | E50: =IF(Table13[[#This Row],[Sales]]=MIN(Table13[Sales]),Table13[[#This Row],[Sales]],0) -> 0
B51: N | C51: 65 | D51: =IF(Table13[[#This Row],[Sales]]=MAX(Table13[Sales]),Table13[[#This Row],[Sales]],0) -> 0 | E51: =IF(Table13[[#This Row],[Sales]]=MIN(Table13[Sales]),Table13[[#This Row],[Sales]],0) -> 0
B52: D | C52: 56 | D52: =IF(Table13[[#This Row],[Sales]]=MAX(Table13[Sales]),Table13[[#This Row],[Sales]],0) -> 0 | E52: =IF(Table13[[#This Row],[Sales]]=MIN(Table13[Sales]),Table13[[#This Row],[Sales]],0) -> 0
A53: 2018 | B53: J | C53: 71 | D53: =IF(Table13[[#This Row],[Sales]]=MAX(Table13[Sales]),Table13[[#This Row],[Sales]],0) -> 0 | E53: =IF(Table13[[#This Row],[Sales]]=MIN(Table13[Sales]),Table13[[#This Row],[Sales]],0) -> 0
B54: F | C54: 78 | D54: =IF(Table13[[#This Row],[Sales]]=MAX(Table13[Sales]),Table13[[#This Row],[Sales]],0) -> 0 | E54: =IF(Table13[[#This Row],[Sales]]=MIN(Table13[Sales]),Table13[[#This Row],[Sales]],0) -> 0
B55: M | C55: 52 | D55: =IF(Table13[[#This Row],[Sales]]=MAX(Table13[Sales]),Table13[[#This Row],[Sales]],0) -> 0 | E55: =IF(Table13[[#This Row],[Sales]]=MIN(Table13[Sales]),Table13[[#This Row],[Sales]],0) -> 0
B56: A | C56: 64 | D56: =IF(Table13[[#This Row],[Sales]]=MAX(Table13[Sales]),Table13[[#This Row],[Sales]],0) -> 0 | E56: =IF(Table13[[#This Row],[Sales]]=MIN(Table13[Sales]),Table13[[#This Row],[Sales]],0) -> 0
B57: M | C57: 58 | D57: =IF(Table13[[#This Row],[Sales]]=MAX(Table13[Sales]),Table13[[#This Row],[Sales]],0) -> 0 | E57: =IF(Table13[[#This Row],[Sales]]=MIN(Table13[Sales]),Table13[[#This Row],[Sales]],0) -> 0
B58: J | C58: 74 | D58: =IF(Table13[[#This Row],[Sales]]=MAX(Table13[Sales]),Table13[[#This Row],[Sales]],0) -> 0 | E58: =IF(Table13[[#This Row],[Sales]]=MIN(Table13[Sales]),Table13[[#This Row],[Sales]],0) -> 0
B59: J | C59: 82 | D59: =IF(Table13[[#This Row],[Sales]]=MAX(Table13[Sales]),Table13[[#This Row],[Sales]],0) -> 0 | E59: =IF(Table13[[#This Row],[Sales]]=MIN(Table13[Sales]),Table13[[#This Row],[Sales]],0) -> 0
B60: A | C60: 50 | D60: =IF(Table13[[#This Row],[Sales]]=MAX(Table13[Sales]),Table13[[#This Row],[Sales]],0) -> 0 | E60: =IF(Table13[[#This Row],[Sales]]=MIN(Table13[Sales]),Table13[[#This Row],[Sales]],0) -> 50
B61: S | C61: 73 | D61: =IF(Table13[[#This Row],[Sales]]=MAX(Table13[Sales]),Table13[[#This Row],[Sales]],0) -> 0 | E61: =IF(Table13[[#This Row],[Sales]]=MIN(Table13[Sales]),Table13[[#This Row],[Sales]],0) -> 0
B62: O | C62: 87 | D62: =IF(Table13[[#This Row],[Sales]]=MAX(Table13[Sales]),Table13[[#This Row],[Sales]],0) -> 0 | E62: =IF(Table13[[#This Row],[Sales]]=MIN(Table13[Sales]),Table13[[#This Row],[Sales]],0) -> 0
B63: N | C63: 56 | D63: =IF(Table13[[#This Row],[Sales]]=MAX(Table13[Sales]),Table13[[#This Row],[Sales]],0) -> 0 | E63: =IF(Table13[[#This Row],[Sales]]=MIN(Table13[Sales]),Table13[[#This Row],[Sales]],0) -> 0
B64: D | C64: 52 | D64: =IF(Table13[[#This Row],[Sales]]=MAX(Table13[Sales]),Table13[[#This Row],[Sales]],0) -> 0 | E64: =IF(Table13[[#This Row],[Sales]]=MIN(Table13[Sales]),Table13[[#This Row],[Sales]],0) -> 0

Sheet Waterfall 2007+
A1: Waterfall Chart - Excel 2007+
A4: Chart Data | B4: P&L Values | C4: Totals | D4: Before | E4: After
A5: Sales | B5: 1200000 | C5: =B5 -> 1200000
A6: Consulting | B6: 60000 | D6: =SUM($B$5:B5) -> 1200000 | E6: =SUM($B$5:B6) -> 1260000
A7: Total Sales | B7: =SUM(B5:B6) -> 1260000 | C7: =B7 -> 1260000
A8: Materials | B8: =-B5*0.2 -> -240000 | D8: =SUM($B$7:B7) -> 1260000 | E8: =SUM($B$7:B8) -> 1020000
A9: Direct Labour | B9: -125000 | D9: =SUM($B$7:B8) -> 1020000 | E9: =SUM($B$7:B9) -> 895000
A10: Freight | B10: -13500 | D10: =SUM($B$7:B9) -> 895000 | E10: =SUM($B$7:B10) -> 881500
A11: Gross Profit | B11: =SUM(B7:B10) -> 881500 | C11: =+B11 -> 881500
A12: Legal & Accounting | B12: -25000 | D12: =SUM($B$11:B11) -> 881500 | E12: =SUM($B$11:B12) -> 856500
A13: Wages | B13: -240000 | D13: =SUM($B$11:B12) -> 856500 | E13: =SUM($B$11:B13) -> 616500
A14: Interest | B14: -15000 | D14: =SUM($B$11:B13) -> 616500 | E14: =SUM($B$11:B14) -> 601500
A15: Repairs | B15: -31000 | D15: =SUM($B$11:B14) -> 601500 | E15: =SUM($B$11:B15) -> 570500
A16: Telephone | B16: -16000 | D16: =SUM($B$11:B15) -> 570500 | E16: =SUM($B$11:B16) -> 554500
A17: Utilities | B17: -18000 | D17: =SUM($B$11:B16) -> 554500 | E17: =SUM($B$11:B17) -> 536500
A18: Vehicles | B18: -42000 | D18: =SUM($B$11:B17) -> 536500 | E18: =SUM($B$11:B18) -> 494500
A19: Net Profit/(Loss) | B19: =SUM(B11:B18) -> 494500 | C19: =B19 -> 494500

Sheet In-cell Charts
A1: Excel Charts for Survey Results
B3: Stacked Bar Charts - Not Good!
N5: Note: these charts omit the N/A responses and so the percentages will not add up to 100% for each question.
N9: Question | O9: Strongly Agree | P9: Agree | Q9: Neutral | R9: Disagree | S9: Strongly Disagree | T9: N/A
N10: Q17 | O10: 0.25 | P10: 0.51 | Q10: 0.17 | R10: 0.01 | S10: 0.02 | T10: 0.1
N11: Q16 | O11: 0.13 | P11: 0.58 | Q11: 0.16 | R11: 0.04 | S11: 0.04 | T11: 0.1
N12: Q15 | O12: 0.22 | P12: 0.52 | Q12: 0.16 | R12: 0.02 | S12: 0.03 | T12: 0.13
N13: Q14 | O13: 0.22 | P13: 0.44 | Q13: 0.2 | R13: 0.04 | S13: 0.01 | T13: 0.12
N14: Q13 | O14: 0.24 | P14: 0.49 | Q14: 0.18 | R14: 0.02 | S14: 0.03 | T14: 0.13
N15: Q12 | O15: 0.22 | P15: 0.41 | Q15: 0.22 | R15: 0.04 | S15: 0.03 | T15: 0.08
N16: Q11 | O16: 0.07 | P16: 0.2 | Q16: 0.51 | R16: 0.09 | S16: 0.07 | T16: 0.07
N17: Q10 | O17: 0.19 | P17: 0.38 | Q17: 0.22 | R17: 0.08 | S17: 0.06 | T17: 0.07
N18: Q9 | O18: 0.08 | P18: 0.43 | Q18: 0.31 | R18: 0.04 | S18: 0.03 | T18: 0.11
N19: Q8 | O19: 0.07 | P19: 0.53 | Q19: 0.24 | R19: 0.05 | S19: 0.04 | T19: 0.07
N20: Q7 | O20: 0.06 | P20: 0.59 | Q20: 0.17 | R20: 0.08 | S20: 0.03 | T20: 0.06
N21: Q6 | O21: 0.12 | P21: 0.57 | Q21: 0.19 | R21: 0.02 | S21: 0.02 | T21: 0.08
N22: Q5 | O22: 0.07 | P22: 0.43 | Q22: 0.33 | R22: 0.02 | S22: 0.02 | T22: 0.04
N23: Q4 | O23: 0.09 | P23: 0.54 | Q23: 0.2 | R23: 0.02 | S23: 0.03 | T23: 0.09
N24: Q3 | O24: 0.08 | P24: 0.41 | Q24: 0.31 | R24: 0.03 | S24: 0.04 | T24: 0.05
N25: Q2 | O25: 0.04 | P25: 0.44 | Q25: 0.36 | R25: 0.03 | S25: 0.03 | T25: 0.05
N26: Q1 | O26: 0.15 | P26: 0.52 | Q26: 0.14 | R26: 0.04 | S26: 0.05 | T26: 0.04
B31: In-cell Charts or Conditional Formatting Data Bars
B33: Question | C33: Strongly Agree | E33: Agree | G33: Neutral | I33: Disagree | K33: Strongly Disagree | M33: N/A
B34: Q1 | C34: 0.15 | D34: =REPT("|",C34*100) -> ||||||||||||||| | E34: 0.52 | F34: =REPT("|",E34*100) -> |||||||||||||||||||||||||||||||||||||||||||||||||||| | G34: 0.14 | H34: =REPT("|",G34*100) -> |||||||||||||| | I34: 0.04 | J34: =REPT("|",I34*100) -> |||| | K34: 0.05 | L34: =REPT("|",K34*100) -> ||||| | M34: 0.1 | N34: =REPT("|",M34*100) -> ||||||||||
B35: Q2 | C35: 0.04 | D35: |||| | E35: 0.44 | F35: |||||||||||||||||||||||||||||||||||||||||||| | G35: 0.36 | H35: |||||||||||||||||||||||||||||||||||| | I35: 0.03 | J35: ||| | K35: 0.03 | L35: ||| | M35: 0.1 | N35: ||||||||||
B36: Q3 | C36: 0.08 | D36: |||||||| | E36: 0.41 | F36: ||||||||||||||||||||||||||||||||||||||||| | G36: 0.31 | H36: ||||||||||||||||||||||||||||||| | I36: 0.03 | J36: ||| | K36: 0.04 | L36: |||| | M36: 0.13 | N36: |||||||||||||
B37: Q4 | C37: 0.09 | D37: ||||||||| | E37: 0.54 | F37: |||||||||||||||||||||||||||||||||||||||||||||||||||||| | G37: 0.2 | H37: |||||||||||||||||||| | I37: 0.02 | J37: || | K37: 0.03 | L37: ||| | M37: 0.12 | N37: ||||||||||||
B38: Q5 | C38: 0.07 | D38: ||||||| | E38: 0.43 | F38: ||||||||||||||||||||||||||||||||||||||||||| | G38: 0.33 | H38: ||||||||||||||||||||||||||||||||| | I38: 0.02 | J38: || | K38: 0.02 | L38: || | M38: 0.13 | N38: |||||||||||||
B39: Q6 | C39: 0.12 | D39: |||||||||||| | E39: 0.57 | F39: |||||||||||||||||||||||||||||||||||||||||||||||||||||||| | G39: 0.19 | H39: ||||||||||||||||||| | I39: 0.02 | J39: || | K39: 0.02 | L39: || | M39: 0.08 | N39: ||||||||
B40: Q7 | C40: 0.06 | D40: |||||| | E40: 0.59 | F40: ||||||||||||||||||||||||||||||||||||||||||||||||||||||||||| | G40: 0.17 | H40: ||||||||||||||||| | I40: 0.08 | J40: |||||||| | K40: 0.03 | L40: ||| | M40: 0.07 | N40: |||||||
B41: Q8 | C41: 0.07 | D41: ||||||| | E41: 0.53 | F41: ||||||||||||||||||||||||||||||||||||||||||||||||||||| | G41: 0.24 | H41: |||||||||||||||||||||||| | I41: 0.05 | J41: ||||| | K41: 0.04 | L41: |||| | M41: 0.07 | N41: |||||||
B42: Q9 | C42: 0.08 | D42: |||||||| | E42: 0.43 | F42: ||||||||||||||||||||||||||||||||||||||||||| | G42: 0.31 | H42: ||||||||||||||||||||||||||||||| | I42: 0.04 | J42: |||| | K42: 0.03 | L42: ||| | M42: 0.11 | N42: |||||||||||
B43: Q10 | C43: 0.19 | D43: ||||||||||||||||||| | E43: 0.38 | F43: |||||||||||||||||||||||||||||||||||||| | G43: 0.22 | H43: |||||||||||||||||||||| | I43: 0.08 | J43: |||||||| | K43: 0.06 | L43: |||||| | M43: 0.07 | N43: |||||||
B44: Q11 | C44: 0.07 | D44: ||||||| | E44: 0.2 | F44: |||||||||||||||||||| | G44: 0.51 | H44: ||||||||||||||||||||||||||||||||||||||||||||||||||| | I44: 0.09 | J44: ||||||||| | K44: 0.07 | L44: ||||||| | M44: 0.06 | N44: ||||||
B45: Q12 | C45: 0.22 | D45: |||||||||||||||||||||| | E45: 0.41 | F45: ||||||||||||||||||||||||||||||||||||||||| | G45: 0.22 | H45: |||||||||||||||||||||| | I45: 0.04 | J45: |||| | K45: 0.03 | L45: ||| | M45: 0.08 | N45: ||||||||
B46: Q13 | C46: 0.24 | D46: |||||||||||||||||||||||| | E46: 0.49 | F46: ||||||||||||||||||||||||||||||||||||||||||||||||| | G46: 0.18 | H46: |||||||||||||||||| | I46: 0.02 | J46: || | K46: 0.03 | L46: ||| | M46: 0.04 | N46: ||||
B47: Q14 | C47: 0.22 | D47: |||||||||||||||||||||| | E47: 0.44 | F47: |||||||||||||||||||||||||||||||||||||||||||| | G47: 0.2 | H47: |||||||||||||||||||| | I47: 0.04 | J47: |||| | K47: 0.01 | L47: | | M47: 0.09 | N47: |||||||||
B48: Q15 | C48: 0.22 | D48: |||||||||||||||||||||| | E48: 0.52 | F48: |||||||||||||||||||||||||||||||||||||||||||||||||||| | G48: 0.16 | H48: |||||||||||||||| | I48: 0.02 | J48: || | K48: 0.03 | L48: ||| | M48: 0.05 | N48: |||||
B49: Q16 | C49: 0.13 | D49: ||||||||||||| | E49: 0.58 | F49: ||||||||||||||||||||||||||||||||||||||||||||||||||||||||| | G49: 0.16 | H49: |||||||||||||||| | I49: 0.04 | J49: |||| | K49: 0.04 | L49: |||| | M49: 0.05 | N49: |||||
B50: Q17 | C50: 0.25 | D50: ||||||||||||||||||||||||| | E50: 0.51 | F50: ||||||||||||||||||||||||||||||||||||||||||||||||||| | G50: 0.17 | H50: ||||||||||||||||| | I50: 0.01 | J50: | | K50: 0.02 | L50: || | M50: 0.04 | N50: ||||
B52: Converging Stacked Bar Chart
N55: Question | O55: Strongly Agree | P55: Agree | Q55: Neutral | R55: Disagree | S55: Strongly Disagree
N56: Q17 | O56: -0.25 | P56: -0.51 | Q56: -0.17 | R56: 0.01 | S56: 0.02
N57: Q16 | O57: -0.13 | P57: -0.58 | Q57: -0.16 | R57: 0.04 | S57: 0.04
N58: Q15 | O58: -0.22 | P58: -0.52 | Q58: -0.16 | R58: 0.02 | S58: 0.03
N59: Q14 | O59: -0.22 | P59: -0.44 | Q59: -0.2 | R59: 0.04 | S59: 0.01
N60: Q13 | O60: -0.24 | P60: -0.49 | Q60: -0.18 | R60: 0.02 | S60: 0.03
N61: Q12 | O61: -0.22 | P61: -0.41 | Q61: -0.22 | R61: 0.04 | S61: 0.03
N62: Q11 | O62: -0.07 | P62: -0.2 | Q62: -0.51 | R62: 0.09 | S62: 0.07
N63: Q10 | O63: -0.19 | P63: -0.38 | Q63: -0.22 | R63: 0.08 | S63: 0.06
N64: Q9 | O64: -0.08 | P64: -0.43 | Q64: -0.31 | R64: 0.04 | S64: 0.03
N65: Q8 | O65: -0.07 | P65: -0.53 | Q65: -0.24 | R65: 0.05 | S65: 0.04
N66: Q7 | O66: -0.06 | P66: -0.59 | Q66: -0.17 | R66: 0.08 | S66: 0.03
N67: Q6 | O67: -0.12 | P67: -0.57 | Q67: -0.19 | R67: 0.02 | S67: 0.02
N68: Q5 | O68: -0.07 | P68: -0.43 | Q68: -0.33 | R68: 0.02 | S68: 0.02
N69: Q4 | O69: -0.09 | P69: -0.54 | Q69: -0.2 | R69: 0.02 | S69: 0.03
N70: Q3 | O70: -0.08 | P70: -0.41 | Q70: -0.31 | R70: 0.03 | S70: 0.04
N71: Q2 | O71: -0.04 | P71: -0.44 | Q71: -0.36 | R71: 0.03 | S71: 0.03
N72: Q1 | O72: -0.15 | P72: -0.52 | Q72: -0.14 | R72: 0.04 | S72: 0.05
B79: Sorted Converging Stacked Bar Chart
N82: Question | O82: Strongly Agree | P82: Agree | Q82: Neutral | R82: Disagree | S82: Strongly Disagree
N83: Q14 | O83: -0.22 | P83: -0.44 | Q83: -0.2 | R83: 0.04 | S83: 0.01
N84: Q17 | O84: -0.25 | P84: -0.51 | Q84: -0.17 | R84: 0.01 | S84: 0.02
N85: Q6 | O85: -0.12 | P85: -0.57 | Q85: -0.19 | R85: 0.02 | S85: 0.02
N86: Q5 | O86: -0.07 | P86: -0.43 | Q86: -0.33 | R86: 0.02 | S86: 0.02
N87: Q15 | O87: -0.22 | P87: -0.52 | Q87: -0.16 | R87: 0.02 | S87: 0.03
N88: Q13 | O88: -0.24 | P88: -0.49 | Q88: -0.18 | R88: 0.02 | S88: 0.03
N89: Q12 | O89: -0.22 | P89: -0.41 | Q89: -0.22 | R89: 0.04 | S89: 0.03
N90: Q9 | O90: -0.08 | P90: -0.43 | Q90: -0.31 | R90: 0.04 | S90: 0.03
N91: Q7 | O91: -0.06 | P91: -0.59 | Q91: -0.17 | R91: 0.08 | S91: 0.03
N92: Q4 | O92: -0.09 | P92: -0.54 | Q92: -0.2 | R92: 0.02 | S92: 0.03
N93: Q2 | O93: -0.04 | P93: -0.44 | Q93: -0.36 | R93: 0.03 | S93: 0.03
N94: Q16 | O94: -0.13 | P94: -0.58 | Q94: -0.16 | R94: 0.04 | S94: 0.04
N95: Q8 | O95: -0.07 | P95: -0.53 | Q95: -0.24 | R95: 0.05 | S95: 0.04
N96: Q3 | O96: -0.08 | P96: -0.41 | Q96: -0.31 | R96: 0.03 | S96: 0.04
N97: Q1 | O97: -0.15 | P97: -0.52 | Q97: -0.14 | R97: 0.04 | S97: 0.05
N98: Q10 | O98: -0.19 | P98: -0.38 | Q98: -0.22 | R98: 0.08 | S98: 0.06
N99: Q11 | O99: -0.07 | P99: -0.2 | Q99: -0.51 | R99: 0.09 | S99: 0.07
B108: Custom Sorted Converging Stacked Bar Chart
W110: 1 | X110: =IF(W110=3,6,W110) -> 1
P111: Q. Number | Q111: Strongly Agree | R111: Agree | S111: Neutral | T111: Disagree | U111: Strongly Disagree | W111: Rank | Z111: Question | AA111: Strongly Agree | AB111: Agree | AC111: Neutral | AD111: Disagree | AE111: Strongly Disagree
P112: =INDEX($Y$112:$Y$128,MATCH($Z112,$W$112:$W$128,0)) -> Q1 | Q112: =-INDEX(AA$112:AA$128,MATCH($Z112,$W$112:$W$128,0)) -> -0.249889 | R112: =-INDEX(AB$112:AB$128,MATCH($Z112,$W$112:$W$128,0)) -> -0.509889 | S112: =-INDEX(AC$112:AC$128,MATCH($Z112,$W$112:$W$128,0)) -> -0.169889 | T112: =INDEX(AD$112:AD$128,MATCH($Z112,$W$112:$W$128,0)) -> 0.010111 | U112: 0.020111 | W112: =RANK(CHOOSE($X$110,Z112,AA112,AB112,AC112,AD112,AE112),OFFSET($Y$112,,$X$110,17,1),CHOOSE($W$110,1,0,0)) -> 1 | Y112: Q1 | Z112: 1 | AA112: 0.249889 | AB112: 0.509889 | AC112: 0.169889 | AD112: 0.010111 | AE112: 0.020111
P113: =INDEX($Y$112:$Y$128,MATCH($Z113,$W$112:$W$128,0)) -> Q2 | Q113: =-INDEX(AA$112:AA$128,MATCH($Z113,$W$112:$W$128,0)) -> -0.129879 | R113: -0.579879 | S113: -0.159879 | T113: 0.040121 | U113: 0.040121 | W113: =RANK(CHOOSE($X$110,Z113,AA113,AB113,AC113,AD113,AE113),OFFSET($Y$112,,$X$110,17,1),CHOOSE($W$110,1,0,0)) -> 2 | Y113: Q2 | Z113: 2 | AA113: 0.129879 | AB113: 0.579879 | AC113: 0.159879 | AD113: 0.040121 | AE113: 0.040121
P114: Q3 | Q114: -0.219886 | R114: -0.519886 | S114: -0.159886 | T114: 0.020114 | U114: 0.030114 | W114: 3 | Y114: Q3 | Z114: 3 | AA114: 0.219886 | AB114: 0.519886 | AC114: 0.159886 | AD114: 0.020114 | AE114: 0.030114
P115: Q4 | Q115: -0.21989 | R115: -0.43989 | S115: -0.19989 | T115: 0.04011 | U115: 0.01011 | W115: 4 | Y115: Q4 | Z115: 4 | AA115: 0.21989 | AB115: 0.43989 | AC115: 0.19989 | AD115: 0.04011 | AE115: 0.01011
P116: Q5 | Q116: -0.239885 | R116: -0.489885 | S116: -0.179885 | T116: 0.020115 | U116: 0.030115 | W116: 5 | Y116: Q5 | Z116: 5 | AA116: 0.239885 | AB116: 0.489885 | AC116: 0.179885 | AD116: 0.020115 | AE116: 0.030115
P117: Q6 | Q117: -0.219884 | R117: -0.409884 | S117: -0.219884 | T117: 0.040116 | U117: 0.030116 | W117: 6 | Y117: Q6 | Z117: 6 | AA117: 0.219884 | AB117: 0.409884 | AC117: 0.219884 | AD117: 0.040116 | AE117: 0.030116
P118: Q7 | Q118: -0.069874 | R118: -0.199874 | S118: -0.509874 | T118: 0.090126 | U118: 0.070126 | W118: 7 | Y118: Q7 | Z118: 7 | AA118: 0.069874 | AB118: 0.199874 | AC118: 0.509874 | AD118: 0.090126 | AE118: 0.070126
P119: Q8 | Q119: -0.189875 | R119: -0.379875 | S119: -0.219875 | T119: 0.080125 | U119: 0.060125 | W119: 8 | Y119: Q8 | Z119: 8 | AA119: 0.189875 | AB119: 0.379875 | AC119: 0.219875 | AD119: 0.080125 | AE119: 0.060125
P120: Q9 | Q120: -0.079883 | R120: -0.429883 | S120: -0.309883 | T120: 0.040117 | U120: 0.030117 | W120: 9 | Y120: Q9 | Z120: 9 | AA120: 0.079883 | AB120: 0.429883 | AC120: 0.309883 | AD120: 0.040117 | AE120: 0.030117
P121: Q10 | Q121: -0.069878 | R121: -0.529878 | S121: -0.239878 | T121: 0.050122 | U121: 0.040122 | W121: 10 | Y121: Q10 | Z121: 10 | AA121: 0.069878 | AB121: 0.529878 | AC121: 0.239878 | AD121: 0.050122 | AE121: 0.040122
P122: Q11 | Q122: -0.059882 | R122: -0.589882 | S122: -0.169882 | T122: 0.080118 | U122: 0.030118 | W122: 11 | Y122: Q11 | Z122: 11 | AA122: 0.059882 | AB122: 0.589882 | AC122: 0.169882 | AD122: 0.080118 | AE122: 0.030118
P123: Q12 | Q123: -0.119888 | R123: -0.569888 | S123: -0.189888 | T123: 0.020112 | U123: 0.020112 | W123: 12 | Y123: Q12 | Z123: 12 | AA123: 0.119888 | AB123: 0.569888 | AC123: 0.189888 | AD123: 0.020112 | AE123: 0.020112
P124: Q13 | Q124: -0.069887 | R124: -0.429887 | S124: -0.329887 | T124: 0.020113 | U124: 0.020113 | W124: 13 | Y124: Q13 | Z124: 13 | AA124: 0.069887 | AB124: 0.429887 | AC124: 0.329887 | AD124: 0.020113 | AE124: 0.020113
P125: Q14 | Q125: -0.089881 | R125: -0.539881 | S125: -0.199881 | T125: 0.020119 | U125: 0.030119 | W125: 14 | Y125: Q14 | Z125: 14 | AA125: 0.089881 | AB125: 0.539881 | AC125: 0.199881 | AD125: 0.020119 | AE125: 0.030119
P126: Q15 | Q126: -0.079877 | R126: -0.409877 | S126: -0.309877 | T126: 0.030123 | U126: 0.040123 | W126: 15 | Y126: Q15 | Z126: 15 | AA126: 0.079877 | AB126: 0.409877 | AC126: 0.309877 | AD126: 0.030123 | AE126: 0.040123
P127: Q16 | Q127: -0.03988 | R127: -0.43988 | S127: -0.35988 | T127: 0.03012 | U127: 0.03012 | W127: 16 | Y127: Q16 | Z127: 16 | AA127: 0.03988 | AB127: 0.43988 | AC127: 0.35988 | AD127: 0.03012 | AE127: 0.03012
P128: Q17 | Q128: -0.149876 | R128: -0.519876 | S128: -0.139876 | T128: 0.040124 | U128: 0.050124 | W128: 17 | Y128: Q17 | Z128: 17 | AA128: 0.149876 | AB128: 0.519876 | AC128: 0.139876 | AD128: 0.040124 | AE128: 0.050124
